bitfinex/quotes_BTCUSD_20251007
["timestamp","ask_amount","ask_price","bid_price","bid_amount"]
[1759851801959,1e-08,121770.0,121760.0,4.78977472]
[1759851802506,1e-08,121770.0,121760.0,5.53282863]
[1759851802722,1e-08,121770.0,121760.0,5.78646863]
[1759851802898,1e-08,121770.0,121760.0,5.91008804]
[1759851803060,1e-08,121770.0,121760.0,4.96468898]
[1759851803264,1e-08,121770.0,121760.0,4.35755097]
[1759851803463,1e-08,121770.0,121760.0,4.96468898]
[1759851803664,1e-08,121770.0,121760.0,4.35509472]
[1759851803866,1e-08,121770.0,121760.0,4.73176331]
[1759851804074,1e-08,121770.0,121760.0,4.01401116]
[1759851804277,1e-08,121770.0,121760.0,2.54357262]
[1759851804481,1e-08,121770.0,121760.0,1.70085762]
[1759851804688,1e-08,121770.0,121760.0,2.17221062]
[1759851804884,1e-08,121770.0,121760.0,1.20312007]
[1759851805083,1e-08,121770.0,121760.0,1.53642007]
[1759851805331,1e-08,121770.0,121760.0,1.70067762]
[1759851805536,1e-08,121770.0,121760.0,1.10954007]
[1759851805870,1e-08,121770.0,121760.0,0.68776206]
[1759851806475,1e-08,121770.0,121760.0,0.23627]
[1759851806623,1e-08,121770.0,121760.0,0.48279]
[1759851806956,1e-08,121770.0,121760.0,0.5192]
[1759851807561,1e-08,121770.0,121760.0,0.68345755]
[1759851807777,1e-08,121770.0,121760.0,1.27371762]
[1759851807969,1e-08,121770.0,121760.0,0.76657961]
[1759851808382,1e-08,121770.0,121760.0,1.27410762]
[1759851808579,1e-08,121770.0,121760.0,0.76696961]
[1759851808829,1e-08,121770.0,121760.0,1.10985007]
[1759851809032,1e-08,121770.0,121760.0,1.27410762]
[1759851809283,1e-08,121770.0,121760.0,1.27371762]
[1759851810479,1e-08,121770.0,121760.0,1.75793362]
[1759851811297,1e-08,121770.0,121760.0,1.25079561]
[1759851811497,1e-08,121770.0,121760.0,1.75793362]
[1759851812065,1e-08,121770.0,121760.0,1.61371762]
[1759851812669,1e-08,121770.0,121760.0,1.10946007]
[1759851813123,1e-08,121770.0,121760.0,1.27371762]
[1759851813702,1e-08,121770.0,121760.0,0.44651]
[1759851813982,1e-08,121770.0,121760.0,0.48555]
[1759851814596,1e-08,121770.0,121760.0,0.64980755]
[1759851815294,1e-08,121770.0,121760.0,1.27255762]
[1759851815763,0.20131666,121820.0,121760.0,1.27255762]
[1759851815764,0.0004,121820.0,121810.0,0.16419013]
[1759851815962,0.00085748,121880.0,121850.0,0.00820681]
[1759851816171,0.00100826,121880.0,121870.0,1.51664636]
[1759851816389,0.00100826,121880.0,121870.0,0.7651173]
[1759851816660,0.00100826,121880.0,121870.0,0.09387]
[1759851816897,0.00100826,121880.0,121870.0,0.24976]
[1759851817109,0.34,121870.0,121860.0,0.24984]
[1759851817498,1.09437128,121870.0,121850.0,0.24988]
[1759851817644,0.08312206,121860.0,121840.0,0.24988]
[1759851817846,0.59026007,121860.0,121840.0,0.24988]
[1759851818071,0.75438421,121860.0,121840.0,0.24988]
[1759851818419,0.59026007,121860.0,121840.0,0.24988]
[1759851818947,0.75438315,121860.0,121840.0,0.24988]
[1759851819195,0.08312206,121860.0,121840.0,0.24988]
[1759851819403,0.59026007,121860.0,121840.0,0.24988]
[1759851819597,0.50713801,121850.0,121840.0,0.24988]
[1759851819836,0.59026007,121850.0,121830.0,0.2496]
[1759851820386,0.59026007,121850.0,121830.0,0.34266]
[1759851820921,0.50713801,121840.0,121830.0,0.2496]
[1759851821116,0.93026007,121850.0,121830.0,0.2496]
[1759851821730,0.00358332,121840.0,121830.0,0.2496]
[1759851821969,0.00358332,121840.0,121810.0,0.51978]
[1759851822187,0.5904108,121840.0,121820.0,0.24924]
[1759851822395,0.42327279,121840.0,121820.0,0.24924]
[1759851822608,0.9304108,121840.0,121820.0,0.3423]
[1759851822807,0.42327279,121840.0,121820.0,0.24924]
[1759851823025,0.9304108,121840.0,121820.0,0.24924]
[1759851823823,0.42327279,121840.0,121820.0,0.24924]
[1759851824046,0.42327279,121840.0,121820.0,0.3423]
[1759851824194,0.9304108,121840.0,121820.0,0.24924]
[1759851824686,0.42327279,121840.0,121820.0,0.3423]
[1759851824887,0.9304108,121840.0,121820.0,0.3423]
[1759851825692,0.9304108,121840.0,121820.0,0.24924]
[1759851825837,1.09456144,121840.0,121820.0,0.24924]
[1759851826053,0.50713801,121830.0,121820.0,0.24924]
[1759851826874,0.67130118,121830.0,121820.0,0.24924]
[1759851827079,0.65433007,121830.0,121810.0,0.24888]
[1759851827255,0.50713801,121820.0,121810.0,0.24888]
[1759851827457,0.00255994,121820.0,121810.0,0.31157]
[1759851827862,0.00255994,121820.0,121810.0,0.40463]
[1759851829591,0.00255994,121820.0,121810.0,0.90463]
[1759851830375,0.00255994,121820.0,121810.0,1.06882013]
[1759851830577,0.00255994,121820.0,121810.0,0.90463]
[1759851831332,0.00255994,121820.0,121810.0,1.06882013]
[1759851831950,0.00255994,121820.0,121810.0,0.90463]
[1759851832154,0.00255994,121820.0,121810.0,0.81157]
[1759851833401,0.6738746,121820.0,121810.0,0.74888]
[1759851833607,0.50969795,121820.0,121810.0,0.74888]
[1759851833931,0.6738746,121820.0,121810.0,0.81157]
[1759851834258,0.50969795,121820.0,121810.0,0.81157]
[1759851834735,0.00255994,121820.0,121810.0,0.81157]
[1759851835096,0.00255994,121820.0,121810.0,0.56269]
[1759851835300,0.82106666,121820.0,121810.0,0.5]
[1759851835562,1.16106666,121820.0,121810.0,0.5]
[1759851835718,1.26060666,121820.0,121810.0,0.50765815]
[1759851836348,1.50848666,121820.0,121810.0,0.50765815]
[1759851836931,1.50848666,121820.0,121810.0,0.5]
[1759851837342,1.50832666,121820.0,121810.0,0.50766089]
[1759851837822,1.50828666,121820.0,121810.0,0.5]
[1759851838235,0.75346865,121820.0,121810.0,0.5]
[1759851838589,0.425682,121820.0,121810.0,0.56269]
[1759851838816,1.26060666,121820.0,121810.0,0.5]
[1759851840366,0.489752,121820.0,121810.0,0.5]
[1759851840663,0.34255994,121820.0,121810.0,0.81]
[1759851840846,0.34255994,121820.0,121810.0,0.5]
[1759851840847,0.50969795,121820.0,121810.0,0.5]
[1759851841016,1.25716666,121820.0,121810.0,0.5]
[1759851841211,1.50548666,121820.0,121810.0,0.5]
[1759851841825,0.99834865,121820.0,121810.0,0.5]
[1759851842027,1.09299001,121820.0,121810.0,0.5]
[1759851842320,1.41186666,121820.0,121810.0,0.5]
[1759851842735,0.085682,121820.0,121810.0,0.5]
[1759851842936,0.085682,121820.0,121810.0,0.90288]
[1759851842937,0.00255994,121820.0,121810.0,0.90288]
[1759851843482,0.00255994,121820.0,121810.0,0.8104]
[1759851843682,0.00255994,121820.0,121810.0,0.5]
[1759851843683,0.99937001,121820.0,121810.0,0.5]
[1759851843856,1.25716666,121820.0,121810.0,0.7482]
[1759851844277,1.50544666,121820.0,121810.0,0.5]
[1759851844827,0.65640865,121820.0,121810.0,0.5]
[1759851845033,1.25716666,121820.0,121810.0,0.5]
[1759851845245,1.50528666,121820.0,121810.0,0.5]
[1759851846088,1.65442666,121820.0,121810.0,0.5]
[1759851846303,1.14728865,121820.0,121810.0,0.5]
[1759851846518,0.89916865,121820.0,121810.0,0.5]
[1759851846723,0.73293865,121820.0,121810.0,0.5]
[1759851846903,0.82655865,121820.0,121810.0,0.5]
[1759851847122,1.10976666,121820.0,121810.0,0.5]
[1759851847363,1.33369666,121820.0,121810.0,0.5]
[1759851847572,1.58169666,121820.0,121810.0,0.5]
[1759851847982,1.24007666,121820.0,121810.0,0.5]
[1759851848162,1.28555001,121820.0,121810.0,0.5]
[1759851848399,1.48807666,121820.0,121810.0,0.5]
[1759851848614,1.20172666,121820.0,121810.0,0.5]
[1759851848830,0.83773865,121820.0,121810.0,0.5]
[1759851849042,1.20172666,121820.0,121810.0,0.5]
[1759851849434,1.58149666,121820.0,121810.0,0.5]
[1759851850712,1.60722666,121820.0,121810.0,0.5]
[1759851851152,1.60736512,121820.0,121810.0,0.5]
[1759851851570,0.7127588,121820.0,121810.0,0.525]
[1759851851767,0.8026588,121820.0,121810.0,0.525]
[1759851851969,0.778012,121820.0,121810.0,0.525]
[1759851852341,1.6005088,121820.0,121810.0,0.525]
[1759851853357,1.76468545,121820.0,121810.0,0.525]
[1759851853579,1.3529088,121820.0,121810.0,0.525]
[1759851853756,1.79037545,121820.0,121810.0,0.525]
[1759851854178,1.09984865,121820.0,121810.0,0.525]
[1759851854420,1.79037545,121820.0,121810.0,0.525]
[1759851854623,1.79137545,121820.0,121810.0,0.525]
[1759851854839,1.54381545,121820.0,121810.0,0.525]
[1759851855054,1.79121545,121820.0,121810.0,0.525]
[1759851855268,1.79121545,121820.0,121810.0,0.50385467]
[1759851855879,1.79121545,121820.0,121810.0,0.43745651]
[1759851855880,2.10802645,121820.0,121810.0,0.43745651]
[1759851856088,2.20802645,121820.0,121810.0,0.2754978]
[1759851856288,2.20802645,121820.0,121810.0,0.17753469]
[1759851856711,0.50424406,121770.0,121760.0,0.00085717]
[1759851856925,2.23049686,121770.0,121760.0,0.00085717]
[1759851857131,2.43000986,121770.0,121760.0,0.00085717]
[1759851857339,2.45466938,121770.0,121760.0,0.00085717]
[1759851857551,1.77240323,121770.0,121760.0,0.00085717]
[1759851857760,2.46293003,121770.0,121760.0,0.00085717]
[1759851858467,1.77578103,121770.0,121760.0,0.00085717]
[1759851858702,1.86114103,121770.0,121760.0,0.00085717]
[1759851858926,1.77586103,121770.0,121760.0,0.00085717]
[1759851859147,1.86122103,121770.0,121760.0,0.00085717]
[1759851859405,1.61158309,121770.0,121760.0,0.00085717]
[1759851859624,1.95753109,121770.0,121760.0,0.00085717]
[1759851859833,2.29021109,121770.0,121760.0,0.00085717]
[1759851861180,2.20469109,121770.0,121760.0,0.00085717]
[1759851861436,1.93253109,121770.0,121760.0,0.00085717]
[1759851861693,1.91944357,121770.0,121760.0,0.00085717]
[1759851861915,1.57944357,121770.0,121760.0,0.00085717]
[1759851862144,1.33443877,121770.0,121760.0,0.00085717]
[1759851862357,2.29647877,121770.0,121760.0,0.00085717]
[1759851863865,2.63647877,121770.0,121760.0,0.00085717]
[1759851864935,1.67443877,121770.0,121760.0,0.00085717]
[1759851865147,2.00667877,121770.0,121760.0,0.00085717]
[1759851865358,1.64943877,121770.0,121760.0,0.00085717]
[1759851865568,1.98167877,121770.0,121760.0,0.00085717]
[1759851865850,0.39215271,121770.0,121760.0,0.00085717]
[1759851866064,0.80323677,121770.0,121760.0,0.00085717]
[1759851866274,1.49376357,121770.0,121760.0,0.00085717]
[1759851866498,1.83376357,121770.0,121760.0,0.00085717]
[1759851867546,1.95314757,121770.0,121760.0,0.00085717]
[1759851867772,1.93743357,121770.0,121760.0,0.00085717]
[1759851867984,1.83376357,121770.0,121760.0,0.00085717]
[1759851868611,1.58692357,121770.0,121760.0,0.00085717]
[1759851868818,1.9815403,121770.0,121760.0,0.00085717]
[1759851869877,1.2910135,121770.0,121760.0,0.00085717]
[1759851870185,2.0308603,121770.0,121760.0,0.00085717]
[1759851870392,1.2910135,121770.0,121760.0,0.00085717]
[1759851870593,2.1988093,121770.0,121760.0,0.00085717]
[1759851871368,2.3595793,121770.0,121760.0,0.00085717]
[1759851871736,2.3649393,121770.0,121760.0,0.00085717]
[1759851872328,0.1643161,121720.0,121700.0,0.0005]
[1759851872531,0.32944206,121710.0,121700.0,0.00100235]
[1759851872744,0.42800206,121710.0,121700.0,0.00100235]
[1759851873174,0.36569206,121710.0,121700.0,0.00100235]
[1759851873349,0.42800206,121710.0,121700.0,0.00100235]
[1759851873624,0.46947,121730.0,121700.0,0.06508235]
[1759851873835,0.32944206,121720.0,121700.0,1.05614768]
[1759851874068,0.73476503,121710.0,121700.0,0.00100235]
[1759851874282,1.09764709,121710.0,121700.0,0.00100235]
[1759851875351,1.06408709,121710.0,121700.0,0.00100235]
[1759851875558,0.42312206,121710.0,121700.0,0.20128235]
[1759851875776,0.66932206,121710.0,121700.0,0.20128235]
[1759851876030,0.2474482,121730.0,121700.0,0.20128235]
[1759851876239,0.49371527,121720.0,121700.0,0.23861235]
[1759851876682,0.52996527,121720.0,121700.0,0.20128235]
[1759851877376,0.5299638,121720.0,121700.0,0.20128235]
[1759851877597,0.4937138,121720.0,121700.0,0.20128235]
[1759851878041,0.16432503,121710.0,121700.0,0.06508235]
[1759851878264,0.5299638,121720.0,121700.0,0.06508235]
[1759851878485,0.32940206,121720.0,121700.0,0.20435751]
[1759851878751,0.49371437,121720.0,121700.0,0.20128235]
[1759851879610,0.53036437,121720.0,121700.0,0.06508235]
[1759851879836,0.28408437,121720.0,121700.0,0.06508235]
[1759851880262,0.24743437,121720.0,121700.0,0.10339235]
[1759851880470,0.28408437,121720.0,121700.0,0.88474915]
[1759851880680,0.24743437,121720.0,121700.0,0.88474915]
[1759851880885,0.28408437,121720.0,121700.0,0.06508235]
[1759851881111,0.28408437,121720.0,121700.0,0.10339235]
[1759851881324,0.16432503,121710.0,121700.0,0.10339235]
[1759851881524,0.34727709,121710.0,121700.0,0.00100235]
[1759851882283,0.68727709,121710.0,121700.0,0.00100235]
[1759851882466,1.06205709,121710.0,121700.0,0.00100235]
[1759851882666,1.09759709,121710.0,121700.0,0.00100235]
[1759851883475,0.85195709,121710.0,121700.0,0.00100235]
[1759851883853,1.09743709,121710.0,121700.0,0.00100235]
[1759851884264,1.09743709,121710.0,121700.0,0.00407751]
[1759851885107,1.14667709,121710.0,121700.0,0.00407751]
[1759851885310,1.09727709,121710.0,121700.0,0.00407751]
[1759851887418,0.85195709,121710.0,121700.0,0.00407751]
[1759851887775,1.09719709,121710.0,121700.0,0.00407751]
[1759851889020,0.72500709,121710.0,121700.0,0.00407751]
[1759851889218,0.72500709,121710.0,121700.0,0.88414431]
[1759851889219,0.08312206,121710.0,121700.0,0.88414431]
[1759851889422,0.16432503,121710.0,121700.0,0.10278751]
[1759851889630,0.50432503,121710.0,121700.0,0.06447751]
[1759851891446,0.60415503,121710.0,121700.0,0.00407751]
[1759851891648,0.68727709,121710.0,121700.0,0.00407751]
[1759851896171,0.0082149,121730.0,121700.0,0.92293431]
[1759851896449,0.16429875,121730.0,121710.0,1.0649068]
[1759851896664,0.51185042,121730.0,121720.0,0.00204977]
[1759851897168,0.81980248,121730.0,121720.0,0.00204977]
[1759851898245,0.87305386,121730.0,121720.0,0.00204977]
[1759851898474,1.10319248,121730.0,121720.0,0.00204977]
[1759851899186,0.85795248,121730.0,121720.0,0.00204977]
[1759851899414,1.10319248,121730.0,121720.0,0.00204977]
[1759851899640,1.10419248,121730.0,121720.0,0.00204977]
[1759851900368,1.11929088,121730.0,121720.0,0.00204977]
[1759851900607,1.80981768,121730.0,121720.0,0.00204977]
[1759851900838,1.79471928,121730.0,121720.0,0.00204977]
[1759851901072,1.13667149,121730.0,121720.0,0.00204977]
[1759851901281,1.80455833,121730.0,121720.0,0.00204977]
[1759851901729,0.50432503,121710.0,121700.0,0.00100235]
[1759851901966,0.85527361,121710.0,121700.0,0.00100235]
[1759851902174,1.85348041,121710.0,121700.0,0.00100235]
[1759851902396,1.16295361,121710.0,121700.0,0.00100235]
[1759851903031,1.18030667,121710.0,121700.0,0.00100235]
[1759851903243,1.16295361,121710.0,121700.0,0.00100235]
[1759851903448,0.50433853,121700.0,121690.0,0.09179612]
[1759851903657,0.50433853,121700.0,121690.0,0.09194688]
[1759851903658,1.37092391,121700.0,121690.0,0.09194688]
[1759851903867,1.52708391,121700.0,121690.0,0.09194688]
[1759851905179,1.52708391,121700.0,121630.0,0.06556749]
[1759851905180,0.16441959,121640.0,121630.0,0.06556749]
[1759851905403,0.34,121640.0,121630.0,0.06571809]
[1759851905609,0.60491959,121640.0,121630.0,0.0003506]
[1759851905816,0.81783165,121640.0,121630.0,0.0003506]
[1759851906028,0.83985708,121640.0,121630.0,0.0003506]
[1759851906239,0.67543749,121640.0,121630.0,0.0003506]
[1759851906446,0.66145749,121640.0,121630.0,0.0003506]
[1759851906854,0.53166749,121640.0,121630.0,0.0003506]
[1759851907056,0.86035708,121640.0,121630.0,0.0003506]
[1759851907261,0.94117749,121640.0,121630.0,0.0003506]
[1759851907470,1.10559708,121640.0,121630.0,0.0003506]
[1759851907898,1.10559708,121640.0,121630.0,0.00496676]
[1759851908108,1.55188388,121640.0,121630.0,0.00496676]
[1759851908511,1.10659708,121640.0,121630.0,0.00496676]
[1759851908727,1.79712388,121640.0,121630.0,0.00496676]
[1759851908931,1.83711516,121640.0,121630.0,0.00496676]
[1759851909356,1.83711516,121640.0,121590.0,0.0002]
[1759851909357,0.50447368,121600.0,121590.0,0.0002]
[1759851909574,1.52336254,121600.0,121590.0,0.00070294]
[1759851909775,1.54337254,121600.0,121590.0,0.00070294]
[1759851910011,1.09808574,121600.0,121590.0,0.00070294]
[1759851910201,1.54337254,121600.0,121590.0,0.00070294]
[1759851910414,1.78861254,121600.0,121590.0,0.00070294]
[1759851911031,1.09808574,121600.0,121590.0,0.00070294]
[1759851911236,1.78861254,121600.0,121590.0,0.00070294]
[1759851911440,0.85284574,121600.0,121590.0,0.00070294]
[1759851911650,1.54337254,121600.0,121590.0,0.00070294]
[1759851911908,1.09812574,121600.0,121590.0,0.00070294]
[1759851912403,1.05900574,121600.0,121590.0,0.00070294]
[1759851912629,0.81372574,121600.0,121590.0,0.00070294]
[1759851912783,0.68809574,121600.0,121590.0,0.00070294]
[1759851912988,0.42412206,121600.0,121590.0,0.06262294]
[1759851913205,0.83387574,121600.0,121590.0,0.06262294]
[1759851913685,0.001,121600.0,121590.0,0.74360783]
[1759851913812,0.001,121600.0,121590.0,0.23487294]
[1759851914007,0.001,121600.0,121590.0,0.74360783]
[1759851914214,0.001,121600.0,121590.0,0.23487294]
[1759851914446,0.001,121600.0,121590.0,0.19603294]
[1759851915061,0.001,121600.0,121590.0,0.23692599]
[1759851915552,0.001,121600.0,121590.0,0.78039088]
[1759851915727,0.001,121600.0,121590.0,0.23692599]
[1759851916097,0.001,121600.0,121590.0,1.02800015]
[1759851916304,0.001,121600.0,121590.0,0.78039088]
[1759851916516,0.001,121600.0,121590.0,1.07642088]
[1759851916724,0.001,121600.0,121590.0,0.48224599]
[1759851916934,0.001,121600.0,121590.0,0.99098088]
[1759851917145,0.50547368,121600.0,121590.0,0.30999599]
[1759851917357,0.81304574,121600.0,121590.0,0.00275599]
[1759851917580,0.58859574,121600.0,121590.0,0.00275599]
[1759851918019,0.68909574,121600.0,121590.0,0.00275599]
[1759851918227,0.58859574,121600.0,121590.0,0.06467599]
[1759851918480,0.341,121600.0,121590.0,0.19808599]
[1759851918692,0.001,121600.0,121590.0,0.48220599]
[1759851919591,0.001,121600.0,121590.0,0.23692599]
[1759851919802,0.001,121600.0,121590.0,0.48224599]
[1759851920018,0.001,121600.0,121590.0,1.02571088]
[1759851920282,0.001,121600.0,121590.0,2.62174121]
[1759851920504,0.001,121600.0,121590.0,1.82889115]
[1759851920725,0.001,121600.0,121590.0,2.67695221]
[1759851921147,0.001,121600.0,121590.0,2.68124035]
[1759851921797,0.001,121600.0,121590.0,1.3244444]
[1759851922024,0.001,121600.0,121590.0,1.7518444]
[1759851922241,0.001,121600.0,121590.0,1.36800015]
[1759851922470,0.001,121600.0,121590.0,1.50622115]
[1759851922673,0.001,121600.0,121590.0,1.75150115]
[1759851922876,0.001,121600.0,121590.0,1.50622115]
[1759851923117,0.001,121600.0,121590.0,2.17890115]
[1759851923357,0.001,121600.0,121590.0,1.50622115]
[1759851923577,0.001,121600.0,121590.0,2.17890115]
[1759851923956,0.001,121600.0,121590.0,1.67016626]
[1759851924179,0.001,121600.0,121590.0,2.17890115]
[1759851924555,0.001,121600.0,121590.0,0.85926526]
[1759851924762,0.001,121600.0,121590.0,2.04068015]
[1759851924979,0.001,121600.0,121590.0,1.79540015]
[1759851925141,0.001,121600.0,121590.0,2.04068015]
[1759851925920,0.001,121600.0,121590.0,0.85926526]
[1759851926135,0.001,121600.0,121590.0,2.04060015]
[1759851926660,0.001,121600.0,121590.0,3.57348204]
[1759851927941,0.001,121600.0,121590.0,3.06474715]
[1759851928157,0.001,121600.0,121590.0,2.36430026]
[1759851928400,0.001,121600.0,121590.0,2.87303515]
[1759851929245,0.001,121600.0,121590.0,2.87299515]
[1759851929473,0.001,121600.0,121590.0,1.55511815]
[1759851929671,0.001,121600.0,121590.0,2.22767815]
[1759851930314,0.001,121600.0,121590.0,3.07573921]
[1759851930524,0.00185833,121640.0,121630.0,0.673168]
[1759851930776,0.00185833,121640.0,121630.0,0.93074806]
[1759851931011,0.00185833,121640.0,121630.0,0.89638006]
[1759851931224,0.00185833,121640.0,121630.0,0.75932517]
[1759851931441,0.00185833,121640.0,121630.0,0.64768206]
[1759851931653,0.00185833,121640.0,121630.0,0.82573695]
[1759851931868,0.00185833,121640.0,121630.0,1.32100088]
[1759851932329,0.00185833,121640.0,121630.0,0.84491599]
[1759851932534,0.00185833,121640.0,121630.0,1.35365088]
[1759851933157,0.00185833,121640.0,121630.0,0.85290446]
[1759851933365,0.00185833,121640.0,121630.0,1.36163935]
[1759851933560,0.00185833,121640.0,121630.0,0.52226446]
[1759851933715,0.00185833,121640.0,121630.0,1.35361088]
[1759851934107,0.00185833,121640.0,121630.0,4.07876488]
[1759851934972,0.00185833,121640.0,121630.0,2.1538555]
[1759851935209,0.00185833,121640.0,121630.0,1.5754535]
[1759851935410,0.00185833,121640.0,121630.0,2.0027335]
[1759851935581,0.00185833,121640.0,121630.0,1.9889405]
[1759851936027,0.00185833,121640.0,121630.0,1.8161965]
[1759851936239,0.00185833,121640.0,121630.0,1.80779588]
[1759851936364,0.00185833,121640.0,121630.0,1.81596185]
[1759851936566,0.00185833,121640.0,121630.0,1.80779588]
[1759851936953,0.00185833,121640.0,121630.0,1.29906099]
[1759851937183,0.00185833,121640.0,121630.0,1.80779588]
[1759851937393,0.00185833,121640.0,121630.0,1.69541088]
[1759851937611,0.00185833,121640.0,121630.0,1.80685188]
[1759851937816,0.00185833,121640.0,121630.0,1.13441188]
[1759851938032,0.00185833,121640.0,121630.0,0.95623699]
[1759851938228,0.00185833,121640.0,121630.0,1.46497188]
[1759851938456,0.00185833,121640.0,121630.0,1.18909777]
[1759851938679,0.00185833,121640.0,121630.0,0.31715288]
[1759851938883,0.16126526,121650.0,121630.0,1.15644777]
[1759851939082,0.16126526,121650.0,121640.0,0.13298]
[1759851939327,0.17261256,121660.0,121640.0,0.19468]
[1759851939580,0.34,121670.0,121650.0,0.92467489]
[1759851939791,0.34,121680.0,121660.0,0.74125489]
[1759851940009,0.23793747,121690.0,121670.0,0.92467489]
[1759851940223,0.23793747,121690.0,121680.0,0.19468]
[1759851940224,0.32105953,121690.0,121680.0,0.19468]
[1759851940448,0.32105953,121690.0,121670.0,0.79169489]
[1759851940449,0.16436554,121680.0,121670.0,0.24512]
[1759851941065,0.16436554,121680.0,121650.0,0.68777519]
[1759851941287,0.16436554,121680.0,121670.0,0.0617]
[1759851941504,0.16437905,121670.0,121650.0,0.13298]
[1759851941708,0.16439315,121660.0,121640.0,0.13298]
[1759851941911,0.16439315,121660.0,121650.0,0.30678]
[1759851942118,0.42312206,121670.0,121650.0,0.94849489]
[1759851942294,0.58750117,121670.0,121650.0,0.4776]
[1759851942511,0.58750117,121670.0,121660.0,0.03937]
[1759851942785,0.58750117,121670.0,121660.0,0.60980489]
[1759851942993,0.58750117,121670.0,121660.0,0.10107]
[1759851943201,0.58750117,121670.0,121660.0,0.19468]
[1759851943373,0.16437905,121670.0,121660.0,0.70341489]
[1759851943585,0.50436699,121680.0,121660.0,0.19468]
[1759851943732,0.16437905,121670.0,121660.0,0.19468]
[1759851943929,0.16437905,121670.0,121660.0,0.43976]
[1759851944245,0.16437905,121670.0,121660.0,0.30678]
[1759851944444,0.16437905,121670.0,121660.0,0.0617]
[1759851944650,0.16439256,121660.0,121640.0,0.64186571]
[1759851944832,0.00051298,121650.0,121640.0,0.54672571]
[1759851945039,0.00051298,121650.0,121640.0,0.89287571]
[1759851945306,0.00051298,121650.0,121640.0,1.0900853]
[1759851945529,0.00051298,121650.0,121640.0,1.1836953]
[1759851945753,0.00051298,121650.0,121640.0,1.1509053]
[1759851946065,0.00051298,121650.0,121640.0,1.1836953]
[1759851946316,0.00051298,121650.0,121640.0,1.26681736]
[1759851947298,0.00051298,121650.0,121640.0,3.16064036]
[1759851947524,0.00051298,121650.0,121640.0,3.83706642]
[1759851947758,0.00751666,121710.0,121690.0,0.16434828]
[1759851947987,0.06536749,121720.0,121690.0,0.16434828]
[1759851947988,0.22968,121720.0,121700.0,0.98629489]
[1759851948214,0.12142206,121710.0,121700.0,0.0617]
[1759851948416,0.17255769,121700.0,121690.0,0.15952]
[1759851948621,0.17257103,121690.0,121660.0,0.54657489]
[1759851948832,0.16437905,121670.0,121660.0,0.13298]
[1759851949035,0.16437589,121680.0,121660.0,0.94845489]
[1759851949239,0.16437589,121680.0,121660.0,0.81547489]
[1759851949443,0.59569309,121690.0,121670.0,0.60234489]
[1759851949647,0.59569309,121690.0,121680.0,0.24504]
[1759851950598,0.59569309,121690.0,121680.0,0.30674]
[1759851952053,0.59569309,121690.0,121680.0,0.24504]
[1759851952981,0.25569309,121690.0,121680.0,0.30674]
[1759851953796,0.17254128,121710.0,121680.0,0.90908489]
[1759851954011,0.08327266,121710.0,121690.0,0.60234489]
[1759851954218,0.00767536,121710.0,121700.0,0.40031]
[1759851954413,0.0001506,121710.0,121700.0,0.90904489]
[1759851954591,0.0001506,121710.0,121700.0,0.40031]
[1759851954794,0.00322681,121710.0,121700.0,0.40031]
[1759851955367,0.00322681,121710.0,121700.0,0.40027]
[1759851955568,0.00322681,121710.0,121700.0,0.30666]
[1759851956024,0.16755184,121710.0,121700.0,0.30666]
[1759851957717,0.00322681,121710.0,121700.0,0.30666]
[1759851958022,0.16755184,121710.0,121700.0,0.30666]
[1759851958339,0.16755184,121710.0,121700.0,0.24496]
[1759851958543,0.16755184,121710.0,121700.0,0.30666]
[1759851960156,0.00322681,121710.0,121700.0,0.0617]
[1759851960364,0.16433853,121700.0,121690.0,0.09361]
[1759851960570,0.16435774,121690.0,121670.0,0.09204]
[1759851960780,0.2474798,121690.0,121680.0,0.18304]
[1759851961002,0.2474798,121690.0,121680.0,0.24484]
[1759851961221,0.2474798,121690.0,121680.0,0.0618]
[1759851961435,0.16436554,121680.0,121660.0,0.09204]
[1759851961676,0.16438413,121670.0,121650.0,0.0854]
[1759851961872,0.16438413,121670.0,121660.0,0.24488]
[1759851963535,0.16439256,121660.0,121640.0,0.00085827]
[1759851963759,0.24751462,121660.0,121650.0,0.24488]
[1759851963975,0.32849308,121670.0,121650.0,0.24488]
[1759851963976,0.50438072,121670.0,121650.0,0.90745489]
[1759851964204,0.16439256,121660.0,121650.0,0.39872]
[1759851964419,0.16439256,121660.0,121650.0,0.30668]
[1759851965137,0.58750278,121670.0,121650.0,0.39872]
[1759851965367,0.16439256,121660.0,121650.0,0.30668]
[1759851965578,0.16439256,121660.0,121650.0,0.24488]
[1759851966722,0.24750278,121670.0,121660.0,0.15384]
[1759851966937,0.24750111,121670.0,121660.0,0.66257489]
[1759851967795,0.24750111,121670.0,121660.0,0.15384]
[1759851968002,0.24750111,121670.0,121660.0,0.0618]
[1759851968982,0.16439256,121660.0,121650.0,0.50873489]
[1759851969207,0.16439256,121660.0,121650.0,0.30664]
[1759851969434,0.24750111,121670.0,121650.0,0.57053489]
[1759851969641,0.24750111,121670.0,121650.0,0.81537489]
[1759851970479,0.16440608,121650.0,121640.0,0.00100909]
[1759851970689,0.24752814,121650.0,121640.0,0.00100909]
[1759851970888,0.24752814,121650.0,121640.0,0.24584909]
[1759851971309,0.08312206,121650.0,121640.0,0.30764909]
[1759851971520,0.08312206,121650.0,121640.0,0.39968909]
[1759851971934,0.24752814,121650.0,121640.0,0.39968909]
[1759851972148,0.24752814,121650.0,121640.0,0.90842398]
[1759851973394,0.24752814,121650.0,121640.0,0.39968909]
[1759851973600,0.24752814,121650.0,121640.0,0.30764909]
[1759851974007,0.24752814,121650.0,121640.0,0.24584909]
[1759851974221,0.30813814,121650.0,121640.0,0.24584909]
[1759851974834,0.24752814,121650.0,121640.0,0.00100909]
[1759851975068,0.30813814,121650.0,121640.0,0.24584909]
[1759851975285,0.40341814,121650.0,121640.0,0.24584909]
[1759851975790,1.25180301,121650.0,121640.0,0.00100909]
[1759851976434,1.27680301,121650.0,121640.0,0.00100909]
[1759851976931,1.52872301,121650.0,121640.0,0.00100909]
[1759851977147,1.63849106,121650.0,121640.0,0.00100909]
[1759851977602,1.04567814,121650.0,121640.0,0.00100909]
[1759851977811,0.50447368,121600.0,121590.0,0.0002]
[1759851978016,0.58759574,121600.0,121590.0,0.00070294]
[1759851978220,0.64820574,121600.0,121590.0,0.00070294]
[1759851978839,0.74348574,121600.0,121590.0,0.00070294]
[1759851979050,0.82162574,121600.0,121590.0,0.00070294]
[1759851980107,0.82162574,121600.0,121590.0,1.12876586]
[1759851980108,0.08312206,121600.0,121590.0,1.12876586]
[1759851980345,0.16446015,121610.0,121590.0,1.16748586]